bitfinex-derivatives/quotes_BTCF0:USTF0_20241029
["timestamp","ask_amount","ask_price","bid_price","bid_amount"]
[1730218425842,0.002,72474.0,72473.0,0.498691]
[1730218426643,0.002,72474.0,72473.0,0.52304197]
[1730218427247,0.002,72474.0,72473.0,0.498691]
[1730218429934,0.002,72474.0,72473.0,0.53921178]
[1730218430443,0.002,72474.0,72473.0,0.498691]
[1730218431347,0.002,72474.0,72473.0,0.55271871]
[1730218432143,0.002,72474.0,72473.0,0.498691]
[1730218432350,0.002,72474.0,72473.0,0.137891]
[1730218434746,0.002,72474.0,72473.0,0.110341]
[1730218435441,0.002,72474.0,72473.0,0.04134]
[1730218435442,0.071,72474.0,72473.0,0.04134]
[1730218435637,0.071,72474.0,72473.0,0.110341]
[1730218436537,0.002,72474.0,72473.0,0.110341]
[1730218436838,0.002,72474.0,72473.0,0.17787564]
[1730218437040,0.002,72474.0,72473.0,0.19713382]
[1730218438245,0.002,72474.0,72473.0,0.110341]
[1730218438642,0.071,72474.0,72473.0,0.110341]
[1730218439150,0.002,72474.0,72473.0,0.19731884]
[1730218440244,0.002,72474.0,72473.0,0.27890738]
[1730218440547,0.002,72474.0,72473.0,0.19731884]
[1730218440756,0.002,72474.0,72473.0,0.29004885]
[1730218441140,0.3608,72487.0,72473.0,0.29004885]
[1730218441141,0.3608,72490.0,72473.0,0.73825322]
[1730218441341,0.3608,72490.0,72489.0,0.24359172]
[1730218441638,0.3624,72498.0,72497.0,0.082768]
[1730218441944,0.00206942,72507.0,72506.0,0.08276]
[1730218442143,0.00206942,72507.0,72506.0,0.62217329]
[1730218443243,0.068969,72507.0,72506.0,0.09960864]
[1730218443544,0.09279465,72509.0,72508.0,0.082758]
[1730218443739,0.09279465,72509.0,72508.0,0.01379]
[1730218443944,0.16176165,72509.0,72508.0,0.06802589]
[1730218444139,0.068963,72513.0,72508.0,0.13699389]
[1730218444340,0.3608,72514.0,72511.0,0.01379]
[1730218444545,0.3608,72514.0,72513.0,0.01379]
[1730218444942,1.02714344,72514.0,72511.0,0.04065424]
[1730218445139,0.09279465,72512.0,72507.0,0.04065424]
[1730218445440,0.068969,72507.0,72505.0,0.04065424]
[1730218445751,0.16176465,72506.0,72505.0,0.04065424]
[1730218445951,0.16176465,72506.0,72505.0,0.10954424]
[1730218445952,0.43996465,72506.0,72505.0,0.10954424]
[1730218446151,0.16176465,72506.0,72505.0,0.06889]
[1730218446345,0.35987214,72514.0,72507.0,0.06889]
[1730218446540,0.35987214,72514.0,72513.0,0.137853]
[1730218446847,0.35987214,72514.0,72513.0,0.23064765]
[1730218447052,0.35987214,72514.0,72513.0,0.28482391]
[1730218447647,0.35887214,72514.0,72513.0,0.23064765]
[1730218448345,0.35987214,72514.0,72513.0,0.23064765]
[1730218448551,0.001,72514.0,72513.0,0.23064765]
[1730218449250,0.001,72514.0,72513.0,0.28482391]
[1730218449448,0.001,72514.0,72513.0,0.23064765]
[1730218452152,0.52355665,72514.0,72513.0,0.06889]
[1730218453051,0.52355665,72514.0,72504.0,0.06889]
[1730218453248,0.068971,72505.0,72504.0,0.06889]
[1730218454037,0.068972,72504.0,72503.0,0.06889]
[1730218454744,0.068972,72504.0,72503.0,0.10942159]
[1730218455043,0.16176665,72504.0,72503.0,0.06889]
[1730218455650,0.16276665,72504.0,72503.0,0.06889]
[1730218456145,0.068973,72502.0,72501.0,0.06889]
[1730218457250,0.068977,72498.0,72497.0,0.10942159]
[1730218457437,0.068977,72498.0,72497.0,0.06889]
[1730218458350,0.429777,72498.0,72497.0,0.06889]
[1730218458847,0.430777,72498.0,72497.0,0.06889]
[1730218459051,0.3618,72498.0,72497.0,0.23066265]
[1730218459552,0.430777,72498.0,72497.0,0.06889]
[1730218460950,0.3618,72498.0,72497.0,0.06889]
[1730218461151,0.3618,72498.0,72497.0,0.178459]
[1730218461343,0.3618,72498.0,72497.0,0.137868]
[1730218461755,0.001,72498.0,72497.0,0.984488]
[1730218461948,0.001,72498.0,72497.0,1.284788]
[1730218462148,0.001,72498.0,72497.0,0.870988]
[1730218463248,0.3608,72506.0,72497.0,1.43800352]
[1730218463449,0.3608,72506.0,72505.0,0.23065565]
[1730218463644,0.3608,72513.0,72505.0,0.23065565]
[1730218463849,0.3608,72513.0,72512.0,0.27125234]
[1730218464248,0.3608,72513.0,72512.0,0.23064865]
[1730218465049,0.429763,72513.0,72512.0,0.06889]
[1730218465251,0.068963,72513.0,72512.0,0.06889]
[1730218465451,0.069963,72513.0,72512.0,0.06889]
[1730218465950,0.069963,72513.0,72511.0,0.06889]
[1730218465951,0.001,72513.0,72511.0,0.06889]
[1730218466159,0.068964,72512.0,72511.0,0.06889]
[1730218466952,0.001,72513.0,72511.0,0.06889]
[1730218467153,0.068964,72512.0,72511.0,0.06889]
[1730218467358,0.068964,72512.0,72511.0,0.137855]
[1730218467656,0.429764,72512.0,72511.0,0.137855]
[1730218468764,0.3618,72512.0,72511.0,0.137855]
[1730218469856,0.430764,72512.0,72511.0,0.04134]
[1730218470562,0.001,72512.0,72511.0,0.12661103]
[1730218470755,0.001,72512.0,72511.0,0.19557603]
[1730218470951,0.001,72512.0,72511.0,0.1781582]
[1730218471362,0.001,72512.0,72511.0,0.19549335]
[1730218472059,0.001,72512.0,72511.0,0.19528187]
[1730218473048,0.00206894,72524.0,72511.0,0.62148912]
[1730218473256,0.02522612,72537.0,72536.0,0.08273]
[1730218473449,0.06894,72538.0,72536.0,0.10658465]
[1730218473762,0.06894,72538.0,72537.0,0.01379]
[1730218474255,0.09370656,72538.0,72537.0,0.01379]
[1730218476052,0.06894,72537.0,72536.0,0.01379]
[1730218476965,0.09470656,72538.0,72536.0,0.01379]
[1730218477164,0.43074,72537.0,72536.0,0.01379]
[1730218477766,0.43074,72537.0,72528.0,0.06784105]
[1730218477767,0.068948,72529.0,72528.0,0.06784105]
[1730218477956,0.068954,72522.0,72521.0,0.15238814]
[1730218478158,0.16174865,72522.0,72521.0,0.15238814]
[1730218478664,0.43654865,72522.0,72521.0,0.15238814]
[1730218480166,0.43754865,72522.0,72521.0,0.15238814]
[1730218481068,0.70884865,72522.0,72521.0,0.00206834]
[1730218481462,1.12252865,72522.0,72521.0,0.00206834]
[1730218481667,0.068962,72514.0,72513.0,0.06889]
[1730218481858,0.16175665,72514.0,72513.0,0.06889]
[1730218482261,0.16175665,72514.0,72509.0,0.137857]
[1730218482466,0.3608,72515.0,72511.0,0.06889]
[1730218482765,0.16175865,72512.0,72511.0,0.06889]
[1730218483173,0.5993093,72512.0,72505.0,0.06889]
[1730218483370,0.09279465,72506.0,72505.0,0.06889]
[1730218483872,0.50655465,72506.0,72505.0,0.06889]
[1730218484373,0.09279465,72506.0,72505.0,0.06889]
[1730218484564,0.57552465,72506.0,72505.0,0.06889]
[1730218485169,0.93632465,72506.0,72505.0,0.06889]
[1730218485471,0.068971,72505.0,72502.0,0.06889]
[1730218485771,0.09279465,72503.0,72502.0,0.06889]
[1730218485970,0.16176765,72503.0,72502.0,0.06889]
[1730218486171,0.16176765,72503.0,72502.0,0.137863]
[1730218486977,0.16276765,72503.0,72502.0,0.137863]
[1730218488475,0.09379465,72503.0,72502.0,0.137863]
[1730218488773,0.001,72503.0,72502.0,0.137863]
[1730218490270,0.3608,72506.0,72505.0,0.137861]
[1730218490573,0.3608,72506.0,72505.0,0.23065565]
[1730218491372,0.3608,72506.0,72505.0,0.137861]
[1730218491566,0.3608,72506.0,72505.0,0.23065565]
[1730218492769,0.3618,72506.0,72505.0,0.23065565]
[1730218494174,0.001,72506.0,72505.0,0.23065565]
[1730218494370,0.3608,72518.0,72511.0,0.137855]
[1730218494680,0.3608,72518.0,72517.0,0.23064365]
[1730218494882,0.3608,72518.0,72517.0,0.20309365]
[1730218495174,0.3608,72522.0,72521.0,0.137845]
[1730218495378,0.3608,72522.0,72521.0,0.1784749]
[1730218495581,0.3859342,72522.0,72521.0,0.137845]
[1730218495775,0.3859342,72522.0,72521.0,0.2712662]
[1730218496184,0.3859342,72522.0,72521.0,0.23063965]
[1730218496476,0.3859342,72522.0,72521.0,0.27126123]
[1730218496781,0.3869342,72522.0,72521.0,0.27126123]
[1730218496981,0.3869342,72522.0,72521.0,0.23063965]
[1730218497479,0.3869342,72522.0,72521.0,0.17846247]
[1730218497978,0.3869342,72522.0,72521.0,0.137845]
[1730218498172,0.3869342,72522.0,72521.0,0.17846251]
[1730218498373,0.8166882,72522.0,72521.0,0.1784584]
[1730218498678,0.8166882,72522.0,72521.0,0.137845]
[1730218499277,0.8166882,72522.0,72505.0,0.06897]
[1730218499278,0.7477342,72522.0,72519.0,0.06889]
[1730218499487,0.16175065,72520.0,72519.0,0.06889]
[1730218500380,0.068958,72518.0,72517.0,0.06889]
[1730218500583,0.16175265,72518.0,72517.0,0.06889]
[1730218500881,0.068964,72512.0,72511.0,0.06889]
[1730218501080,0.52255865,72512.0,72511.0,0.06889]
[1730218501283,0.93627865,72512.0,72511.0,0.06889]
[1730218501473,0.068969,72509.0,72508.0,0.137858]
[1730218501671,0.16176365,72509.0,72508.0,0.137858]
[1730218501874,0.57552365,72509.0,72508.0,0.137858]
[1730218502271,0.50655465,72509.0,72508.0,0.137858]
[1730218502470,0.50655465,72509.0,72495.0,0.07065604]
[1730218502471,0.3608,72512.0,72511.0,0.137855]
[1730218503681,0.3608,72523.0,72522.0,0.137844]
[1730218503885,0.14196,72537.0,72517.0,0.068959]
[1730218503886,0.3608,72544.0,72543.0,0.068934]
[1730218504076,0.3608,72544.0,72543.0,0.137824]
[1730218504275,0.3608,72551.0,72550.0,0.137818]
[1730218504583,0.45359465,72551.0,72550.0,0.137818]
[1730218504774,0.52252165,72551.0,72550.0,0.137818]
[1730218504973,0.54674118,72551.0,72550.0,0.137818]
[1730218505289,1.26026118,72551.0,72550.0,0.04191376]
[1730218505478,1.26026118,72551.0,72530.0,0.706846]
[1730218505479,0.068935,72543.0,72542.0,0.068935]
[1730218505678,0.52252965,72543.0,72542.0,0.068935]
[1730218505980,0.06894,72538.0,72537.0,0.068939]
[1730218506188,0.16173465,72538.0,72537.0,0.068939]
[1730218506486,0.13909431,72541.0,72537.0,0.137829]
[1730218506677,0.13909431,72541.0,72540.0,0.137827]
[1730218506876,0.20803031,72541.0,72540.0,0.137827]
[1730218507677,0.13909431,72541.0,72540.0,0.137827]
[1730218507990,0.16412459,72541.0,72540.0,0.137827]
[1730218508779,0.16512459,72541.0,72540.0,0.137827]
[1730218510287,0.068941,72536.0,72535.0,0.137831]
[1730218510482,0.20803531,72536.0,72535.0,0.137831]
[1730218510684,0.62163531,72536.0,72535.0,0.137831]
[1730218510988,0.02603028,72541.0,72540.0,0.137827]
[1730218511378,1e-06,72541.0,72540.0,0.137827]
[1730218511589,1e-06,72541.0,72540.0,0.17836968]
[1730218511785,1e-06,72541.0,72540.0,0.137827]
[1730218512289,0.13909431,72557.0,72553.0,0.137815]
[1730218512684,0.02703185,72554.0,72553.0,0.137815]
[1730218512992,0.07099206,72554.0,72553.0,0.137815]
[1730218513184,0.07099206,72554.0,72553.0,0.06889]
[1730218513582,0.48447206,72554.0,72553.0,0.06889]
[1730218514183,0.068927,72551.0,72550.0,0.06889]
[1730218514490,0.20802131,72551.0,72550.0,0.137818]
[1730218514692,0.20802131,72551.0,72550.0,0.06889]
[1730218514891,0.62154131,72551.0,72550.0,0.04134]
[1730218515397,0.02828268,72554.0,72550.0,0.18043431]
[1730218515601,0.001,72554.0,72553.0,0.443515]
[1730218516097,0.068912,72567.0,72565.0,0.082704]
[1730218516296,0.45397645,72566.0,72565.0,0.082704]
[1730218517088,0.45397645,72566.0,72565.0,0.01379]
[1730218517293,0.86737645,72566.0,72547.0,0.3608]
[1730218517598,0.068924,72555.0,72549.0,0.068929]
[1730218517800,0.068924,72554.0,72549.0,0.068929]
[1730218518110,0.3608,72559.0,72550.0,0.06889]
[1730218518408,0.02586345,72566.0,72565.0,0.137804]
[1730218518606,0.3608,72583.0,72565.0,0.56878431]
[1730218518607,0.02448962,72577.0,72565.0,0.56878431]
[1730218518895,0.3608,72583.0,72573.0,0.06889]
[1730218519094,0.068902,72577.0,72573.0,0.06889]
[1730218519891,0.069902,72577.0,72573.0,0.06889]
[1730218520094,0.001,72577.0,72573.0,0.06889]
[1730218520293,0.068905,72574.0,72573.0,0.06889]
[1730218521295,0.068865,72574.0,72573.0,0.06889]
[1730218521988,0.068865,72574.0,72573.0,0.137796]
[1730218522194,0.09322553,72574.0,72573.0,0.137796]
[1730218522392,0.068865,72574.0,72573.0,0.137796]
[1730218522597,0.069865,72574.0,72573.0,0.137796]
[1730218522795,0.069865,72574.0,72573.0,0.06889]
[1730218522995,0.069865,72574.0,72573.0,0.137796]
[1730218523197,0.069865,72574.0,72573.0,0.06889]
[1730218525901,0.068877,72604.0,72590.0,0.06889]
[1730218526095,0.068861,72621.0,72611.0,0.06889]
[1730218526302,0.068861,72621.0,72612.0,0.42969]
[1730218526303,0.068869,72613.0,72612.0,0.42969]
[1730218527800,0.068864,72618.0,72615.0,0.06889]
[1730218528395,0.02430478,72625.0,72615.0,0.06889]
[1730218528600,0.068858,72624.0,72623.0,0.06889]
[1730218528904,0.02533733,72635.0,72625.0,0.06889]
[1730218529107,0.068847,72635.0,72634.0,0.42969]
[1730218529698,0.068847,72635.0,72634.0,0.06889]
[1730218530806,0.068847,72635.0,72628.0,0.3608]
[1730218530807,0.068852,72630.0,72629.0,0.06889]
[1730218530996,0.20794631,72630.0,72629.0,0.06889]
[1730218531311,0.62098631,72630.0,72629.0,0.06889]
[1730218531995,1.21293431,72630.0,72622.0,0.3608]
[1730218532196,0.20795331,72623.0,72622.0,0.42969]
[1730218532600,0.481939,72623.0,72622.0,0.42969]
[1730218532798,0.481939,72623.0,72622.0,0.06889]
[1730218532998,0.481939,72623.0,72601.0,0.3608]
[1730218532999,0.068878,72604.0,72601.0,0.3608]
[1730218533197,0.13909431,72612.0,72602.0,0.06889]
[1730218533404,0.13909431,72612.0,72601.0,0.3608]
[1730218533405,0.068872,72609.0,72608.0,0.06889]
[1730218533810,0.068872,72609.0,72608.0,0.137763]
[1730218534102,0.068872,72609.0,72608.0,0.06889]
[1730218534303,0.482032,72609.0,72608.0,0.06889]
[1730218534708,0.5074182,72609.0,72608.0,0.06889]
[1730218536009,0.068878,72603.0,72602.0,0.06889]
[1730218536211,0.20797231,72603.0,72602.0,0.06889]
[1730218538008,0.62117231,72603.0,72602.0,0.06889]
[1730218538405,0.76253231,72603.0,72602.0,0.06889]
[1730218539007,0.76253231,72603.0,72587.0,0.00206652]
[1730218539204,0.068892,72588.0,72587.0,0.00206652]
[1730218539408,0.068889,72591.0,72590.0,0.06889]
[1730218539711,0.13909431,72595.0,72594.0,0.110226]
[1730218539712,0.068885,72595.0,72594.0,0.110226]
[1730218540105,0.068885,72595.0,72594.0,0.06889]
[1730218540311,0.20797931,72595.0,72594.0,0.06889]
[1730218542114,0.13909431,72595.0,72594.0,0.06889]
[1730218542413,0.20797931,72595.0,72594.0,0.06889]
[1730218542618,0.20897931,72595.0,72594.0,0.06889]
[1730218542806,0.23386853,72595.0,72594.0,0.06889]
[1730218543414,0.09477422,72595.0,72594.0,0.137776]
[1730218543603,0.3608,72607.0,72606.0,0.137765]
[1730218543804,0.38525248,72607.0,72606.0,0.27685931]
[1730218544013,0.45412648,72607.0,72606.0,0.27685931]
[1730218544423,0.3608,72639.0,72606.0,1.41165931]
[1730218544607,0.13909431,72636.0,72617.0,0.63764831]
[1730218544807,0.13909431,72636.0,72619.0,0.06889]
[1730218544808,0.068857,72625.0,72619.0,0.06889]
[1730218545017,0.068857,72625.0,72617.0,0.56875831]
[1730218545018,0.068857,72625.0,72624.0,0.42969]
[1730218545820,0.068857,72625.0,72624.0,0.498548]
[1730218546420,0.068857,72625.0,72624.0,0.42969]
[1730218546921,0.068857,72625.0,72618.0,0.01589]
[1730218546922,1.142737,72625.0,72618.0,0.01589]
[1730218547117,0.068871,72610.0,72609.0,0.00206585]
[1730218547312,0.068871,72610.0,72609.0,0.14116016]
[1730218547513,0.068871,72610.0,72609.0,0.00206585]
[1730218548124,0.429671,72610.0,72609.0,0.00206585]
[1730218548317,0.068871,72610.0,72609.0,0.00206585]
[1730218548915,0.429671,72610.0,72609.0,0.00206585]
[1730218550110,0.44915816,72610.0,72609.0,0.00206585]
[1730218551115,0.44915816,72610.0,72603.0,0.3608]
[1730218551325,0.068877,72604.0,72603.0,0.3608]
[1730218556024,0.482077,72604.0,72603.0,0.3608]
[1730218556227,0.068885,72595.0,72594.0,0.3608]
[1730218556726,0.3608,72599.0,72583.0,0.429696]
[1730218556927,0.068892,72588.0,72583.0,0.429696]
[1730218557125,0.068892,72588.0,72585.0,0.02699]
[1730218558116,0.068892,72588.0,72584.0,0.02699]
[1730218558628,0.068892,72588.0,72587.0,0.17315083]
[1730218558922,0.068892,72588.0,72587.0,0.23704383]
[1730218559120,0.068889,72591.0,72589.0,0.095881]
[1730218559325,0.068885,72595.0,72594.0,0.02699]
[1730218560426,0.01989717,72601.0,72600.0,0.02699]
[1730218560617,0.068879,72602.0,72600.0,0.16608431]
[1730218560817,0.068879,72602.0,72601.0,0.27849]
[1730218561820,0.068879,72602.0,72601.0,0.347369]
[1730218562723,0.0196945,72603.0,72602.0,0.02699]
[1730218562922,0.068878,72603.0,72602.0,0.02699]
[1730218565825,0.068878,72603.0,72602.0,0.095868]
[1730218566323,0.068878,72603.0,72602.0,0.02699]
[1730218567326,0.64075963,72603.0,72602.0,0.02699]
[1730218567633,0.44926532,72603.0,72602.0,0.02699]
[1730218567824,0.08846532,72603.0,72602.0,0.02699]
[1730218568325,0.01958732,72603.0,72602.0,0.02699]
[1730218568519,0.068878,72603.0,72602.0,0.02699]
[1730218569922,0.62117231,72603.0,72602.0,0.02699]
[1730218570335,0.068892,72588.0,72587.0,0.0424287]
[1730218570638,0.068892,72588.0,72587.0,0.00206652]
[1730218571031,0.068892,72588.0,72584.0,0.04057167]
[1730218571221,0.068897,72582.0,72581.0,0.40137724]
[1730218571623,0.068897,72582.0,72581.0,0.3608]
[1730218573234,0.08991141,72582.0,72581.0,0.3708]
[1730218573428,0.09091141,72582.0,72581.0,0.3708]
[1730218573933,0.09091141,72582.0,72581.0,0.3718]
[1730218574129,0.08991141,72582.0,72581.0,0.3718]
[1730218574332,0.08991141,72582.0,72581.0,0.3828]
[1730218574739,0.08991141,72582.0,72581.0,0.42334986]
[1730218575034,0.08991141,72582.0,72581.0,0.42335012]
[1730218575035,0.001,72582.0,72581.0,0.42335012]
[1730218575230,0.001,72582.0,72581.0,0.451698]
[1730218575738,0.069897,72582.0,72581.0,0.3828]
[1730218575933,0.001,72582.0,72581.0,0.3828]
[1730218576141,0.001,72582.0,72581.0,0.451698]
[1730218576625,0.001,72582.0,72581.0,0.3828]
[1730218576828,0.069897,72582.0,72581.0,0.4368805]
[1730218577132,0.069897,72582.0,72581.0,0.3828]
[1730218583835,0.069897,72582.0,72581.0,0.42334589]
[1730218584044,0.069897,72582.0,72581.0,0.3828]
[1730218586842,0.069897,72582.0,72581.0,0.42334547]
[1730218587139,0.069897,72582.0,72581.0,0.3828]
[1730218587841,0.069897,72582.0,72581.0,0.42334547]
[1730218588236,0.069897,72582.0,72581.0,0.42336114]
[1730218589140,0.16256906,72582.0,72581.0,0.42336114]
[1730218589437,0.16256906,72582.0,72581.0,0.3828]
[1730218589637,0.57588906,72582.0,72581.0,0.3828]
[1730218590245,0.57588906,72582.0,72581.0,0.022]
[1730218590447,0.068909,72570.0,72567.0,0.0540805]
[1730218590745,0.068903,72576.0,72552.0,0.3608]
[1730218590746,0.09267206,72568.0,72561.0,0.0265005]
[1730218590954,0.06891,72570.0,72568.0,0.06891]
[1730218591140,0.14048,72574.0,72567.0,0.45347206]
[1730218591338,0.068911,72568.0,72567.0,0.3608]
[1730218591739,0.068911,72568.0,72567.0,0.3738]
[1730218592046,0.068911,72568.0,72567.0,0.46647206]
[1730218592436,0.068911,72568.0,72567.0,0.51281704]
[1730218592637,0.069911,72568.0,72567.0,0.51281704]
[1730218593038,0.069911,72568.0,72567.0,0.49981704]
[1730218594335,0.068911,72568.0,72567.0,0.49981704]
[1730218594539,0.068911,72568.0,72567.0,0.50081704]
[1730218595246,0.068909,72570.0,72567.0,0.49981704]
[1730218595444,0.068907,72573.0,72571.0,0.068907]
[1730218595642,0.068907,72573.0,72572.0,0.20792404]
[1730218595840,0.00112001,72584.0,72572.0,0.27803408]
[1730218596044,0.068895,72585.0,72583.0,0.13901704]
[1730218596239,0.068895,72585.0,72584.0,0.2632]
[1730218597238,0.06889,72590.0,72588.0,0.068891]
[1730218597439,0.06889,72590.0,72589.0,0.49981704]
[1730218597648,0.068888,72592.0,72589.0,0.56870804]
[1730218597845,0.340877,72604.0,72589.0,0.49981704]
[1730218598040,0.06889,72590.0,72589.0,0.49981704]
[1730218598238,0.3608,72606.0,72590.0,0.06889]
[1730218598450,0.3608,72606.0,72590.0,0.41328]
[1730218598451,0.068879,72602.0,72590.0,0.41328]
[1730218598647,0.44916197,72606.0,72601.0,0.13901704]
[1730218598949,0.08836197,72606.0,72604.0,0.3608]
[1730218599454,1.144,72619.0,72604.0,0.3608]
[1730218599455,0.3608,72619.0,72604.0,0.3608]
[1730218599653,0.068871,72610.0,72604.0,0.429676]
[1730218599948,0.068871,72610.0,72609.0,0.13901704]
[1730218600944,0.068871,72610.0,72604.0,0.3608]
[1730218600945,0.068876,72605.0,72604.0,0.49981704]
[1730218602551,0.069876,72605.0,72604.0,0.49981704]
[1730218602756,0.069876,72605.0,72604.0,0.56869404]
[1730218602757,0.001,72605.0,72604.0,0.56869404]
[1730218602948,0.002,72605.0,72604.0,0.56869404]
[1730218604249,0.002,72605.0,72604.0,1.14122382]
[1730218604554,0.068865,72616.0,72605.0,0.068875]
[1730218604850,0.068865,72616.0,72615.0,0.49981704]
[1730218605047,0.07092731,72621.0,72617.0,0.068864]
[1730218605247,0.07092731,72621.0,72620.0,0.13901704]
[1730218605447,0.00206631,72621.0,72620.0,0.13901704]
[1730218605756,0.00206631,72621.0,72620.0,0.20787804]
[1730218605954,0.068855,72627.0,72620.0,0.55213704]
[1730218606151,0.600827,72657.0,72615.0,0.3608]
[1730218606152,0.3807523,72635.0,72626.0,0.49981704]
[1730218606460,0.068851,72631.0,72630.0,0.13901704]
[1730218607257,0.0199523,72635.0,72630.0,0.13901704]
[1730218607553,0.001,72635.0,72634.0,0.49981704]
[1730218607753,0.069847,72635.0,72634.0,0.49981704]
[1730218607959,0.3608,72673.0,72634.0,1.49231408]
[1730218608171,0.17859673,72741.0,72672.0,0.49981704]
[1730218608172,0.13901704,72695.0,72672.0,0.49981704]
[1730218608363,0.13901704,72689.0,72672.0,0.3608]
[1730218608550,0.068811,72673.0,72672.0,0.3608]
[1730218608855,0.068817,72667.0,72666.0,0.3608]
[1730218609248,0.068817,72667.0,72666.0,0.7216]
[1730218609550,0.20783404,72667.0,72666.0,0.3608]
[1730218609758,0.55185704,72667.0,72655.0,0.33321]
[1730218609949,0.20784404,72656.0,72655.0,0.33321]
[1730218610447,0.20784404,72656.0,72651.0,0.00206469]
[1730218610448,0.068827,72656.0,72651.0,0.00206469]
[1730218610651,0.01961692,72656.0,72655.0,0.13901704]
[1730218610851,0.3608,72660.0,72651.0,0.00206469]
[1730218611055,0.068831,72652.0,72651.0,0.00206469]
[1730218612658,0.481751,72652.0,72651.0,0.00206469]
[1730218613446,0.481751,72652.0,72651.0,6.9e-07]
[1730218613447,0.482751,72652.0,72651.0,6.9e-07]
[1730218613661,0.482751,72652.0,72631.0,0.13901704]
[1730218613662,0.55293704,72652.0,72631.0,0.13901704]
[1730218613850,0.06885,72632.0,72631.0,0.13901704]
[1730218615455,0.06985,72632.0,72631.0,0.13901704]
[1730218615667,0.068854,72628.0,72627.0,0.3608]
[1730218616952,0.069854,72628.0,72627.0,0.3608]
[1730218618451,0.001,72628.0,72627.0,0.429655]
[1730218618655,0.13996,72646.0,72636.0,0.068846]
[1730218618858,0.068837,72646.0,72645.0,0.13901704]
[1730218620163,0.002,72646.0,72645.0,0.20785504]
[1730218622171,0.20877,72675.0,72645.0,0.85197704]
[1730218622373,0.09041815,72670.0,72669.0,0.13901704]
[1730218622570,0.07087911,72670.0,72669.0,0.13901704]
[1730218622863,0.068818,72666.0,72665.0,0.13901704]
[1730218623169,0.068823,72660.0,72654.0,0.3608]
[1730218623357,0.5231022,72670.0,72656.0,0.068827]
[1730218623556,0.5231022,72670.0,72662.0,0.13901704]
[1730218623557,0.5241022,72670.0,72662.0,0.13901704]
[1730218623753,0.20783304,72668.0,72654.0,0.3608]
[1730218623968,0.068826,72658.0,72654.0,0.3608]
[1730218624263,0.20783304,72668.0,72653.0,0.06883]
[1730218624264,0.068828,72656.0,72653.0,0.06883]
[1730218624475,0.429622,72662.0,72652.0,0.14108164]
[1730218624654,0.429622,72662.0,72652.0,0.0020646]
[1730218624655,0.3608,72662.0,72652.0,0.0020646]
[1730218624858,0.06883,72653.0,72652.0,0.0020646]
[1730218625061,0.429622,72662.0,72651.0,0.3608]
[1730218625264,0.068831,72652.0,72651.0,0.3608]
[1730218625664,0.068827,72657.0,72654.0,0.068829]
[1730218625873,0.01996172,72662.0,72657.0,0.13901704]
[1730218626083,0.068825,72658.0,72657.0,0.13901704]
[1730218626366,0.001,72666.0,72652.0,0.3608]
[1730218626667,0.068828,72655.0,72652.0,0.429631]
[1730218626870,0.001,72662.0,72657.0,0.13901704]
[1730218627060,0.069822,72662.0,72659.0,0.3608]
[1730218627269,0.068823,72660.0,72659.0,0.3608]
[1730218628061,0.3608,72693.0,72659.0,0.80072]
[1730218628263,0.3608,72693.0,72684.0,0.13901704]
[1730218628461,0.3608,72701.0,72690.0,0.05624704]
[1730218628462,0.01934684,72695.0,72690.0,0.05624704]
[1730218628662,0.068792,72693.0,72689.0,0.3608]
[1730218628970,0.3608,72700.0,72692.0,0.13901704]
[1730218629162,0.3608,72700.0,72697.0,0.068788]
[1730218629364,0.06878,72706.0,72699.0,0.068786]
[1730218629559,0.3608,72709.0,72698.0,0.429587]
[1730218629560,0.068782,72704.0,72698.0,0.429587]
[1730218629763,0.3608,72709.0,72698.0,0.33321]
[1730218629963,0.068787,72699.0,72698.0,0.33321]
[1730218630269,0.068784,72702.0,72698.0,0.401997]
[1730218630455,0.001,72706.0,72698.0,0.33321]
[1730218630662,0.068785,72701.0,72697.0,0.429588]
[1730218630857,0.002,72706.0,72697.0,0.3608]
[1730218631062,0.068781,72705.0,72697.0,0.3608]
[1730218631275,0.068787,72698.0,72697.0,0.3608]
[1730218631570,0.002,72699.0,72698.0,0.068787]
[1730218632073,0.002,72699.0,72698.0,0.481467]
[1730218632377,0.002,72699.0,72689.0,0.33321]
[1730218632378,0.068795,72690.0,72689.0,0.33321]
[1730218632561,0.068802,72683.0,72673.0,0.49981704]
[1730218632763,0.068803,72682.0,72678.0,0.13901704]
[1730218633064,0.068807,72678.0,72673.0,0.49981704]
[1730218633263,0.3608,72688.0,72673.0,0.49981704]
[1730218633471,0.3608,72688.0,72678.0,0.13901704]
[1730218633863,0.068805,72680.0,72678.0,0.13901704]
[1730218634166,0.068798,72687.0,72673.0,0.49981704]
[1730218634364,0.001,72678.0,72673.0,0.3608]
[1730218634561,0.06881,72674.0,72673.0,0.3608]
[1730218636180,0.068818,72666.0,72665.0,0.00206427]
[1730218638870,0.069818,72666.0,72665.0,0.00206427]
[1730218639172,0.06986468,72666.0,72665.0,0.00206427]
[1730218639369,0.07086468,72666.0,72665.0,0.00206427]
[1730218641571,0.00204668,72666.0,72665.0,0.91472131]
[1730218641775,0.00204668,72666.0,72665.0,0.98354031]
[1730218642464,0.00204668,72666.0,72665.0,0.84452327]
[1730218642665,0.00204668,72666.0,72665.0,0.98354031]
[1730218642870,0.00204668,72666.0,72665.0,0.77570427]
[1730218643468,0.00204668,72666.0,72665.0,0.36286427]
[1730218643868,0.00204668,72666.0,72665.0,0.43168327]
[1730218644463,0.00204668,72666.0,72665.0,0.36286427]
[1730218644974,0.57068172,72666.0,72665.0,0.00206427]
[1730218645172,0.43166468,72666.0,72665.0,0.00206427]
[1730218646875,0.57068172,72666.0,72665.0,0.00206427]
[1730218647578,0.00204668,72666.0,72665.0,0.14108131]
[1730218647785,0.00204668,72666.0,72665.0,0.00206427]
[1730218647979,0.07086468,72666.0,72665.0,0.00206427]
[1730218649289,0.00204668,72666.0,72665.0,0.00206427]
[1730218649878,0.00204668,72666.0,72665.0,0.20990031]